bitfinex/quotes_BTCUSD_20250904
["timestamp","ask_amount","ask_price","bid_price","bid_amount"]
[1756960425858,0.02746909,111340.0,111330.0,0.60418473]
[1756960426051,0.02746909,111340.0,111330.0,0.60404916]
[1756960426399,0.00047004,111340.0,111330.0,0.60404916]
[1756960426860,0.00047004,111340.0,111330.0,0.60504916]
[1756960427601,0.00047004,111340.0,111330.0,0.67412916]
[1756960428015,0.00047004,111340.0,111330.0,0.70112502]
[1756960428215,0.00047004,111340.0,111330.0,0.85136502]
[1756960428731,0.00047004,111340.0,111330.0,0.86328822]
[1756960429154,0.00047004,111340.0,111330.0,0.86228822]
[1756960429504,0.00047004,111340.0,111330.0,0.86428822]
[1756960431528,0.00047004,111340.0,111330.0,1.00346605]
[1756960434895,0.00047004,111340.0,111330.0,0.44524515]
[1756960435070,0.00047004,111340.0,111330.0,1.00346605]
[1756960441080,0.00047004,111340.0,111330.0,1.00358605]
[1756960441338,0.00047004,111340.0,111330.0,0.44536515]
[1756960441542,0.00047004,111340.0,111330.0,1.00358605]
[1756960441745,0.00047004,111340.0,111330.0,0.85322605]
[1756960441961,0.00047004,111340.0,111330.0,1.00354605]
[1756960442365,0.00047004,111340.0,111330.0,0.44528515]
[1756960442564,0.00047004,111340.0,111330.0,1.00350605]
[1756960442993,0.00047004,111340.0,111330.0,0.85322605]
[1756960443179,0.00047004,111340.0,111330.0,1.00354605]
[1756960444540,0.00047004,111340.0,111330.0,0.85322605]
[1756960444743,0.00047004,111340.0,111330.0,1.00354605]
[1756960445170,0.00047004,111340.0,111330.0,0.29500515]
[1756960445369,0.00047004,111340.0,111330.0,0.44528515]
[1756960445534,0.00047004,111340.0,111330.0,1.00350605]
[1756960445731,0.00047004,111340.0,111330.0,0.85322605]
[1756960445938,0.00047004,111340.0,111330.0,1.00354605]
[1756960446282,0.00047004,111340.0,111330.0,0.85322605]
[1756960446513,0.00047004,111340.0,111330.0,1.00354605]
[1756960446725,0.00047004,111340.0,111330.0,0.29500515]
[1756960446934,0.00245004,111340.0,111330.0,0.43104195]
[1756960447136,0.03031542,111340.0,111330.0,0.28072195]
[1756960447268,0.03301542,111340.0,111330.0,0.40404609]
[1756960447471,0.03301542,111340.0,111330.0,0.25372609]
[1756960447710,0.03301542,111340.0,111330.0,0.40404609]
[1756960447859,1.14413189,111340.0,111330.0,0.40404609]
[1756960448285,0.58591099,111340.0,111330.0,0.40404609]
[1756960448816,0.61291001,111340.0,111330.0,0.40404609]
[1756960450313,0.61291001,111340.0,111330.0,0.15532]
[1756960451078,0.61291001,111340.0,111330.0,0.15332]
[1756960451747,0.61291001,111340.0,111330.0,0.15432]
[1756960452302,0.61291001,111340.0,111330.0,0.15132]
[1756960452504,0.61291001,111340.0,111330.0,0.33096609]
[1756960453036,0.61291001,111340.0,111330.0,0.33296609]
[1756960458417,0.61021001,111340.0,111330.0,0.33296609]
[1756960468284,0.61021001,111340.0,111330.0,0.003]
[1756960468487,1.17113091,111340.0,111330.0,0.1532]
[1756960468890,0.61021001,111340.0,111330.0,0.33284609]
[1756960470853,1.16843091,111340.0,111330.0,0.33284609]
[1756960472866,1.16843091,111340.0,111330.0,0.33594609]
[1756960473016,0.98880095,111340.0,111330.0,0.33792609]
[1756960473216,0.96463095,111340.0,111330.0,0.33792609]
[1756960474384,1.14426091,111340.0,111330.0,0.33792609]
[1756960476741,0.58604001,111340.0,111330.0,0.33792609]
[1756960476946,1.14426091,111340.0,111330.0,0.33792609]
[1756960480923,1.14228091,111340.0,111330.0,0.33792609]
[1756960483127,0.40443005,111340.0,111330.0,0.33792609]
[1756960483334,0.96265095,111340.0,111330.0,0.33792609]
[1756960486324,1.14427091,111340.0,111330.0,0.33792609]
[1756960486939,0.58406001,111340.0,111330.0,0.33792609]
[1756960487081,1.14228091,111340.0,111330.0,0.33792609]
[1756960487468,0.96464095,111340.0,111330.0,0.33792609]
[1756960489132,0.96265095,111340.0,111330.0,0.33792609]
[1756960493564,0.82322809,111340.0,111330.0,0.33792609]
[1756960495694,0.82521809,111340.0,111330.0,0.33792609]
[1756960501345,0.40642005,111340.0,111330.0,0.33792609]
[1756960501616,0.82521809,111340.0,111330.0,0.33792609]
[1756960503007,0.81413248,111340.0,111330.0,0.33792609]
[1756960503212,0.36746906,111340.0,111330.0,0.33792609]
[1756960503420,0.7862671,111340.0,111330.0,0.33792609]
[1756960504046,0.36746906,111340.0,111330.0,0.75672413]
[1756960504886,0.00047004,111340.0,111330.0,0.75672413]
[1756960505034,0.00047004,111340.0,111330.0,0.83747308]
[1756960505250,0.00047004,111340.0,111330.0,0.75672413]
[1756960506250,0.00047004,111340.0,111330.0,0.33792609]
[1756960506446,0.00047004,111340.0,111330.0,0.75672413]
[1756960507039,0.00047004,111340.0,111330.0,0.33792609]
[1756960507533,0.00047004,111340.0,111330.0,0.18772609]
[1756960507941,0.00047004,111340.0,111330.0,0.33792609]
[1756960508129,0.02833542,111340.0,111330.0,0.33792609]
[1756960508312,0.44713346,111340.0,111330.0,0.33792609]
[1756960509091,0.02833542,111340.0,111330.0,0.33792609]
[1756960509290,0.44911346,111340.0,111330.0,0.18772609]
[1756960509593,0.44911346,111340.0,111330.0,0.33792609]
[1756960509995,0.44713346,111340.0,111330.0,0.33792609]
[1756960512220,0.02833542,111340.0,111330.0,0.33792609]
[1756960512419,0.44713346,111340.0,111330.0,0.33792609]
[1756960513351,0.02833542,111340.0,111330.0,0.18772609]
[1756960513567,0.44713346,111340.0,111330.0,0.33788609]
[1756960513782,0.44911346,111340.0,111330.0,0.33788609]
[1756960514146,0.44911346,111340.0,111330.0,0.18772609]
[1756960514342,1.04754146,111340.0,111330.0,0.18264609]
[1756960514556,0.8679115,111340.0,111330.0,0.33280609]
[1756960515154,1.04754146,111340.0,111330.0,0.003]
[1756960515368,1.04754146,111340.0,111330.0,0.33280609]
[1756960515613,1.05024146,111340.0,111330.0,0.003]
[1756960515750,1.05024146,111340.0,111330.0,0.15316]
[1756960515950,0.23964408,111340.0,111330.0,0.33280609]
[1756960516154,1.07724016,111340.0,111330.0,0.15316]
[1756960516353,0.23964408,111340.0,111330.0,0.15316]
[1756960516551,1.07724016,111340.0,111330.0,0.15316]
[1756960517174,1.41724016,111340.0,111330.0,0.003]
[1756960517374,1.41724016,111340.0,111330.0,0.15316]
[1756960517859,1.41724016,111340.0,111330.0,0.003]
[1756960518033,1.41724016,111340.0,111330.0,0.15316]
[1756960518913,1.41724016,111340.0,111330.0,0.003]
[1756960519319,1.43988016,111340.0,111330.0,0.15316]
[1756960519922,1.43988016,111340.0,111330.0,0.003]
[1756960525198,1.59004016,111340.0,111330.0,0.003]
[1756960525450,1.02108212,111340.0,111330.0,0.003]
[1756960525598,1.58734016,111340.0,111330.0,0.003]
[1756960526233,1.43718016,111340.0,111330.0,0.003]
[1756960527647,1.58734016,111340.0,111330.0,0.003]
[1756960529936,1.56470016,111340.0,111330.0,0.00827]
[1756960531021,1.41454016,111340.0,111330.0,0.00827]
[1756960531546,0.57694408,111340.0,111330.0,0.00827]
[1756960531752,1.41454016,111340.0,111330.0,0.00827]
[1756960533024,1.56470016,111340.0,111330.0,0.00827]
[1756960533405,1.56470016,111340.0,111330.0,0.003]
[1756960534038,0.72710408,111340.0,111330.0,0.003]
[1756960534494,1.56470016,111340.0,111330.0,0.003]
[1756960536403,0.72710408,111340.0,111330.0,0.003]
[1756960536613,1.56470016,111340.0,111330.0,0.003]
[1756960537905,0.72710408,111340.0,111330.0,0.003]
[1756960538112,0.57694408,111340.0,111330.0,0.00827]
[1756960538316,1.41256016,111340.0,111330.0,0.00827]
[1756960538733,1.41256016,111340.0,111330.0,0.01051557]
[1756960541799,1.41455016,111340.0,111330.0,0.01051557]
[1756960543605,0.99376212,111340.0,111330.0,0.01051557]
[1756960543798,0.57496408,111340.0,111330.0,0.01051557]
[1756960544001,0.99376212,111340.0,111330.0,0.01051557]
[1756960546497,0.99575212,111340.0,111330.0,0.01051557]
[1756960546697,1.41455016,111340.0,111330.0,0.01051557]
[1756960546897,0.57695408,111340.0,111330.0,0.01051557]
[1756960547083,1.41455016,111340.0,111330.0,0.01051557]
[1756960549413,1.41455016,111340.0,111330.0,0.16067557]
[1756960549622,1.41455016,111340.0,111330.0,0.01051557]
[1756960549854,1.41455016,111340.0,111330.0,0.15843]
[1756960550309,1.41455016,111340.0,111330.0,0.00827]
[1756960550527,1.41455016,111340.0,111330.0,0.15316]
[1756960552014,1.41455016,111340.0,111330.0,0.15815]
[1756960552456,1.41455016,111340.0,111330.0,0.16039557]
[1756960553037,1.41455016,111340.0,111330.0,0.15316]
[1756960553265,1.41455016,111340.0,111330.0,0.00799]
[1756960553601,1.13539176,111340.0,111330.0,0.15815]
[1756960555067,1.13539176,111340.0,111330.0,0.15513]
[1756960557731,1.13539176,111340.0,111330.0,0.15815]
[1756960559093,1.13539176,111340.0,111330.0,0.15316]
[1756960559299,0.57695408,111340.0,111330.0,0.15316]
[1756960559431,1.13539176,111340.0,111330.0,0.15316]
[1756960560262,0.57695408,111340.0,111330.0,0.15316]
[1756960560458,1.13539176,111340.0,111330.0,0.15316]
[1756960563646,1.13539176,111340.0,111330.0,0.15815]
[1756960564048,0.57695408,111340.0,111330.0,0.00799]
[1756960564256,1.13539176,111340.0,111330.0,0.15815]
[1756960565465,1.13539176,111340.0,111330.0,0.16035557]
[1756960565674,1.13539176,111340.0,111330.0,0.15509]
[1756960565882,1.13539176,111340.0,111330.0,0.15811]
[1756960566283,0.57695408,111340.0,111330.0,0.15811]
[1756960566484,1.13539176,111340.0,111330.0,0.15811]
[1756960567466,1.13539176,111340.0,111330.0,0.00799]
[1756960567673,1.13539176,111340.0,111330.0,0.15513]
[1756960567875,1.13539176,111340.0,111330.0,0.15316]
[1756960568329,0.57695408,111340.0,111330.0,0.15316]
[1756960568529,1.13539176,111340.0,111330.0,0.15316]
[1756960570826,1.13809176,111340.0,111330.0,0.15312]
[1756960571465,1.13539176,111340.0,111330.0,0.15312]
[1756960571711,1.28551176,111340.0,111330.0,0.003]
[1756960573004,0.72707408,111340.0,111330.0,0.003]
[1756960573206,1.28551176,111340.0,111330.0,0.003]
[1756960573361,0.72707408,111340.0,111330.0,0.003]
[1756960573550,1.28551176,111340.0,111330.0,0.003]
[1756960574916,1.28551176,111340.0,111330.0,0.00606]
[1756960575116,1.1058818,111340.0,111330.0,0.18778609]
[1756960575448,1.13340176,111340.0,111330.0,0.18778609]
[1756960575825,0.57496408,111340.0,111330.0,0.18778609]
[1756960576025,0.39533412,111340.0,111330.0,0.18778609]
[1756960577520,0.02746874,111340.0,111330.0,0.74622377]
[1756960577689,0.00047004,111340.0,111330.0,0.74622377]
[1756960579967,0.00047004,111340.0,111330.0,0.18778609]
[1756960582769,0.00047004,111340.0,111330.0,0.33790609]
[1756960583138,0.00047004,111340.0,111330.0,0.42982208]
[1756960586797,0.00047004,111340.0,111330.0,0.27970208]
[1756960587005,0.00047004,111340.0,111330.0,0.42982208]
[1756960588694,0.00047004,111340.0,111330.0,0.27970208]
[1756960588903,0.00047004,111340.0,111330.0,0.42978208]
[1756960597110,0.03031542,111340.0,111330.0,0.42672208]
[1756960597580,0.00047004,111340.0,111330.0,0.42978208]
[1756960601799,0.00047004,111340.0,111330.0,0.49882208]
[1756960604541,0.02746775,111340.0,111330.0,0.49882208]
[1756960606564,0.00047004,111340.0,111330.0,0.49882208]
[1756960612642,0.00047004,111340.0,111330.0,1.07819858]
[1756960612845,0.00047004,111340.0,111330.0,1.00886753]
[1756960613056,0.00047004,111340.0,111330.0,0.60046985]
[1756960615704,0.44703068,111340.0,111330.0,0.49878208]
[1756960615906,0.03031542,111340.0,111330.0,0.49878208]
[1756960616084,0.44901068,111340.0,111330.0,0.49878208]
[1756960616693,0.44901068,111340.0,111330.0,0.34874208]
[1756960617040,0.44901068,111340.0,111330.0,0.49878208]
[1756960618342,0.44703068,111340.0,111330.0,0.49878208]
[1756960618524,0.02833542,111340.0,111330.0,0.49878208]
[1756960619097,0.00047004,111340.0,111330.0,0.99822629]
[1756960619308,0.00047004,111340.0,111330.0,0.57953103]
[1756960619517,0.00047004,111340.0,111330.0,0.99822629]
[1756960620143,0.00047004,111340.0,111330.0,0.57953103]
[1756960620551,0.00047004,111340.0,111330.0,0.99822629]
[1756960621043,0.00047004,111340.0,111330.0,0.57953103]
[1756960621620,0.00245004,111340.0,111330.0,0.57953103]
[1756960621921,0.00245004,111340.0,111330.0,0.49878208]
[1756960622128,0.00047004,111340.0,111330.0,0.49878208]
[1756960624923,0.00047004,111340.0,111330.0,0.34874208]
[1756960625131,0.00047004,111340.0,111330.0,0.49878208]
[1756960634879,0.00047004,111340.0,111330.0,0.34874208]
[1756960635044,0.00047004,111340.0,111330.0,0.49878208]
[1756960637779,0.4211453,111340.0,111330.0,0.34874208]
[1756960637991,0.62864064,111340.0,111330.0,0.49364208]
[1756960638239,0.47600832,111340.0,111330.0,0.49364208]
[1756960638455,0.47600832,111340.0,111330.0,0.49884208]
[1756960638667,0.65563828,111340.0,111330.0,0.34880208]
[1756960638848,0.65563828,111340.0,111330.0,0.49880208]
[1756960639476,0.23694302,111340.0,111330.0,0.49880208]
[1756960639670,0.65563828,111340.0,111330.0,0.49880208]
[1756960639907,0.65563828,111340.0,111330.0,0.34880208]
[1756960640117,0.65563828,111340.0,111330.0,0.49880208]
[1756960640730,0.65563828,111340.0,111330.0,0.34880208]
[1756960640917,0.65563828,111340.0,111330.0,0.49880208]
[1756960641328,0.65563828,111340.0,111330.0,0.34880208]
[1756960641530,0.65563828,111340.0,111330.0,0.49880208]
[1756960642413,0.05731306,111340.0,111330.0,0.49880208]
[1756960642628,0.47600832,111340.0,111330.0,0.49880208]
[1756960643270,0.05533306,111340.0,111330.0,0.49880208]
[1756960643493,0.05533306,111340.0,111330.0,0.57955103]
[1756960643674,0.02746768,111340.0,111330.0,0.57955103]
[1756960652018,0.02746768,111340.0,111330.0,1.01918511]
[1756960652274,0.00047004,111340.0,111330.0,1.01918511]
[1756960652630,0.00047004,111340.0,111330.0,0.60048985]
[1756960652835,0.00047004,111340.0,111330.0,1.04617954]
[1756960654950,0.00047004,111340.0,111330.0,0.89617954]
[1756960655155,0.00047004,111340.0,111330.0,1.04617954]
[1756960659493,0.00047004,111340.0,111330.0,0.62748428]
[1756960659699,0.00047004,111340.0,111330.0,1.04617954]
[1756960660164,0.00047004,111340.0,111330.0,0.62748428]
[1756960660525,0.00047004,111340.0,111330.0,0.47748428]
[1756960660713,0.00047004,111340.0,111330.0,0.62748428]
[1756960660935,0.4191653,111340.0,111330.0,0.45654546]
[1756960661141,0.4191653,111340.0,111330.0,0.52059651]
[1756960661142,0.44901068,111340.0,111330.0,0.52059651]
[1756960661354,0.44901068,111340.0,111330.0,0.37372651]
[1756960661559,0.44901068,111340.0,111330.0,0.49673208]
[1756960662390,0.44901068,111340.0,111330.0,0.49882208]
[1756960663219,0.02833542,111340.0,111330.0,0.49882208]
[1756960663423,0.44703068,111340.0,111330.0,0.49882208]
[1756960663631,0.02833542,111340.0,111330.0,0.49882208]
[1756960663837,0.44703068,111340.0,111330.0,0.49882208]
[1756960664051,0.02833542,111340.0,111330.0,0.49882208]
[1756960664256,0.44703068,111340.0,111330.0,0.49882208]
[1756960666986,0.62865064,111340.0,111330.0,0.34360208]
[1756960667203,0.62865064,111340.0,111330.0,0.49360208]
[1756960668656,0.62865064,111340.0,111330.0,0.34360208]
[1756960668860,0.62865064,111340.0,111330.0,0.49360208]
[1756960669065,0.44902068,111340.0,111330.0,0.49360208]
[1756960670719,0.44902068,111340.0,111330.0,0.49882208]
[1756960674174,0.44703068,111340.0,111330.0,0.49882208]
[1756960675608,0.02833542,111340.0,111330.0,0.49882208]
[1756960682342,0.00047004,111340.0,111330.0,0.49882208]
[1756960690983,0.02833542,111340.0,111330.0,0.49882208]
[1756960691193,0.02833542,111340.0,111330.0,0.34882208]
[1756960691440,0.02833542,111340.0,111330.0,0.49878208]
[1756960692194,0.03031542,111340.0,111330.0,0.34882208]
[1756960692394,0.03031542,111340.0,111330.0,0.49356208]
[1756960692619,0.58863579,111340.0,111330.0,0.49356208]
[1756960692970,0.03031542,111340.0,111330.0,0.49866208]
[1756960694947,0.02833542,111340.0,111330.0,0.49866208]
[1756960700624,0.00047004,111340.0,111330.0,0.49866208]
[1756960701550,0.02746687,111340.0,111330.0,0.49866208]
[1756960702011,0.02746687,111340.0,111330.0,0.57941103]
[1756960703223,0.02746687,111340.0,111330.0,0.49866208]
[1756960711288,0.02746687,111340.0,111330.0,0.57941103]
[1756960712257,0.02746687,111340.0,111330.0,1.15867022]
[1756960712467,0.00047004,111340.0,111330.0,1.15867022]
[1756960713643,0.00047004,111340.0,111330.0,1.00871022]
[1756960713806,0.00047004,111340.0,111330.0,1.15863022]
[1756960715827,0.00047004,111340.0,111330.0,1.00871022]
[1756960716035,0.00047004,111340.0,111330.0,0.60030985]
[1756960720429,0.00047004,111340.0,111330.0,0.45038985]
[1756960720708,0.00047004,111340.0,111330.0,0.60026985]
[1756960721121,0.00047004,111340.0,111330.0,0.45038985]
[1756960721367,0.00047004,111340.0,111330.0,0.60026985]
[1756960722062,0.00047004,111340.0,111330.0,0.45038985]
[1756960722274,0.03031542,111340.0,111330.0,0.42435103]
[1756960722487,0.03031542,111340.0,111330.0,0.57423103]
[1756960722698,0.05731169,111340.0,111330.0,0.49664208]
[1756960722930,0.05731169,111340.0,111330.0,0.49863208]
[1756960731353,0.05533169,111340.0,111330.0,0.49863208]
[1756960735634,0.47405844,111340.0,111330.0,0.49863208]
[1756960736974,0.05533169,111340.0,111330.0,0.49863208]
[1756960737180,0.05533169,111340.0,111330.0,0.91735883]
[1756960738113,0.05533169,111340.0,111330.0,0.49863208]
[1756960738320,0.05533169,111340.0,111330.0,0.91735883]
[1756960739878,0.02746631,111340.0,111330.0,0.91735883]
[1756960740314,0.02746631,111340.0,111330.0,0.49863208]
[1756960740519,0.02746631,111340.0,111330.0,0.91735883]
[1756960745739,0.02746631,111340.0,111330.0,0.99810778]
[1756960746139,0.02746631,111340.0,111330.0,1.0190466]
[1756960746475,0.00047004,111340.0,111330.0,1.0190466]
[1756960747873,0.00047004,111340.0,111330.0,1.0190066]
[1756960749557,0.00047004,111340.0,111330.0,0.45043985]
[1756960749757,0.00047004,111340.0,111330.0,1.0190066]
[1756960749959,0.00085562,111340.0,111330.0,1.0190066]
[1756960753280,0.00085562,111340.0,111330.0,0.60027985]
[1756960753488,0.00085562,111340.0,111330.0,1.0190066]
[1756960760979,0.00085562,111340.0,111330.0,1.0189666]
[1756960763189,0.00085562,111340.0,111330.0,0.8691666]
[1756960763393,0.00085562,111340.0,111330.0,1.0189666]
[1756960764353,0.96410771,111350.0,111330.0,1.0189666]
[1756960764558,0.99197309,111350.0,111340.0,0.42134595]
[1756960764766,0.39363248,111350.0,111340.0,0.42671595]
[1756960765148,0.99395306,111350.0,111340.0,0.42671595]
[1756960766154,0.99395306,111350.0,111340.0,0.42771595]
[1756960766564,0.99395306,111350.0,111340.0,0.42686033]
[1756960767003,0.99395306,111350.0,111340.0,0.42786033]
[1756960767253,0.81433923,111350.0,111340.0,0.42786033]
[1756960768210,0.39561248,111350.0,111340.0,0.42786033]
[1756960771670,0.57522631,111350.0,111340.0,0.42786033]
[1756960772124,0.99395306,111350.0,111340.0,0.42786033]
[1756960773147,0.57522631,111350.0,111340.0,0.42786033]
[1756960773361,0.99395306,111350.0,111340.0,0.42786033]
[1756960777657,0.57522631,111350.0,111340.0,0.42786033]
[1756960777908,0.99395306,111350.0,111340.0,0.42786033]
[1756960779325,0.39561248,111350.0,111340.0,0.42786033]
[1756960779552,0.99395306,111350.0,111340.0,0.42786033]
[1756960784207,0.99395306,111350.0,111340.0,0.27806033]
[1756960784414,0.99395306,111350.0,111340.0,0.42782033]
[1756960787465,0.81433923,111350.0,111340.0,0.42782033]
[1756960789450,0.81235923,111350.0,111340.0,0.42782033]
[1756960789649,0.78449385,111350.0,111340.0,0.42782033]
[1756960789975,0.3657671,111350.0,111340.0,0.42782033]
[1756960790187,0.3657671,111350.0,111340.0,0.94823485]
[1756960790188,0.02699445,111350.0,111340.0,0.94823485]
[1756960790397,0.02699445,111350.0,111340.0,0.5295081]
[1756960790578,0.02699445,111350.0,111340.0,0.94823485]
[1756960790777,0.75872675,111360.0,111350.0,0.17961383]
[1756960790997,0.78571906,111360.0,111350.0,0.27673499]
[1756960791208,0.78571906,111360.0,111350.0,0.27659982]
[1756960791411,0.36699231,111360.0,111350.0,0.27659982]
[1756960791624,0.78571906,111360.0,111350.0,0.27659982]
[1756960792252,0.78571906,111360.0,111350.0,0.27859982]
[1756960792512,0.36699231,111360.0,111350.0,0.27859982]
[1756960792719,0.02699231,111360.0,111350.0,0.27859982]
[1756960793133,0.02699231,111360.0,111350.0,0.28059982]
[1756960794127,0.44571906,111360.0,111350.0,0.28059982]
[1756960796627,0.02699231,111360.0,111350.0,0.28059982]
[1756960797031,0.44571906,111360.0,111350.0,0.28059982]
[1756960797282,0.02699231,111360.0,111350.0,0.28059982]
[1756960800625,0.02264,111380.0,111370.0,0.17958157]
[1756960800747,0.97160824,111390.0,111380.0,0.17956545]
[1756960800947,0.97358824,111390.0,111380.0,0.17956545]
[1756960801519,1.00057492,111390.0,111380.0,0.17956545]
[1756960801712,0.92702861,111390.0,111380.0,0.17956545]
[1756960801917,0.95502061,111390.0,111380.0,0.17956545]
[1756960802145,0.93603949,111390.0,111380.0,0.17956545]
[1756960802999,0.59603949,111390.0,111380.0,0.27655144]
[1756960803208,0.58715523,111390.0,111380.0,0.27655144]
[1756960803410,0.92617523,111390.0,111380.0,0.27655144]
[1756960803818,0.92815523,111390.0,111380.0,0.27655144]
[1756960804392,0.92715523,111390.0,111380.0,0.27655144]
[1756960804778,0.3690933,111390.0,111380.0,0.27148144]
[1756960805021,0.95502061,111390.0,111380.0,0.42120144]
[1756960805223,0.96386163,111390.0,111380.0,0.42120144]
[1756960805828,0.95502061,111390.0,111380.0,0.42120144]
[1756960806448,0.95502061,111390.0,111380.0,0.42116144]
[1756960806651,0.96391454,111390.0,111380.0,0.42116144]
[1756960806909,0.96391454,111390.0,111380.0,0.42216144]
[1756960809325,0.96661454,111390.0,111380.0,0.42216144]
[1756960809538,1.17016387,111390.0,111380.0,0.18056545]
[1756960809736,1.17016387,111390.0,111380.0,0.33024545]
[1756960809970,0.96274916,111390.0,111380.0,0.33024545]
[1756960811822,0.99061454,111390.0,111380.0,0.33024545]
[1756960812029,0.42985261,111390.0,111380.0,0.33024545]
[1756960812234,0.98791454,111390.0,111380.0,0.33024545]
[1756960813669,0.93406916,111390.0,111380.0,0.42746144]
[1756960814090,0.37600723,111390.0,111380.0,0.42746144]
[1756960814291,0.93406916,111390.0,111380.0,0.42746144]
[1756960814707,0.92517523,111390.0,111380.0,0.42746144]
[1756960818247,0.3671133,111390.0,111380.0,0.42746144]
[1756960818648,0.92517523,111390.0,111380.0,0.42746144]
[1756960820439,0.3671133,111390.0,111380.0,0.42746144]
[1756960820620,0.92517523,111390.0,111380.0,0.42746144]
[1756960821457,0.3671133,111390.0,111380.0,0.42746144]
[1756960821647,0.00012662,111390.0,111380.0,0.44840026]
[1756960822076,0.00012662,111390.0,111380.0,0.47538211]
[1756960826097,0.00012662,111390.0,111380.0,0.48436555]
[1756960826301,0.00012662,111390.0,111380.0,0.47538211]
[1756960828157,0.00012662,111390.0,111380.0,1.03344404]
[1756960828371,0.00012662,111390.0,111380.0,0.47538211]
[1756960832194,0.00012662,111390.0,111380.0,0.48450153]
[1756960832404,0.00012662,111390.0,111380.0,1.04256346]
[1756960832616,0.00012662,111390.0,111380.0,0.48450153]
[1756960839708,0.00012662,111390.0,111380.0,0.33482153]
[1756960839908,0.00012662,111390.0,111380.0,0.48442153]
[1756960840461,0.00012662,111390.0,111380.0,0.32570211]
[1756960840846,0.56286855,111390.0,111380.0,0.29946329]
[1756960841049,0.56286855,111390.0,111380.0,0.42208144]
[1756960841251,0.58985259,111390.0,111380.0,0.42208144]
[1756960841827,0.61771797,111390.0,111380.0,0.42208144]
[1756960842436,0.61771797,111390.0,111380.0,0.27248144]
[1756960842611,0.8197773,111390.0,111380.0,0.27248144]
[1756960842894,1.1597773,111390.0,111380.0,0.001]
[1756960843489,1.1597773,111390.0,111380.0,0.1506]
[1756960845717,1.1597773,111390.0,111380.0,0.001]
[1756960847279,1.27913229,111390.0,111380.0,0.001]
[1756960847632,1.1872163,111390.0,111380.0,0.001]
[1756960849951,1.27913229,111390.0,111380.0,0.001]
[1756960851027,1.42873229,111390.0,111380.0,0.001]
[1756960851193,1.27913229,111390.0,111380.0,0.001]
[1756960851395,1.42873229,111390.0,111380.0,0.001]
[1756960852920,1.27913229,111390.0,111380.0,0.001]
[1756960853136,1.42873229,111390.0,111380.0,0.001]
[1756960853542,1.27913229,111390.0,111380.0,0.001]
[1756960854170,1.42873229,111390.0,111380.0,0.001]
[1756960854578,1.27913229,111390.0,111380.0,0.001]
[1756960854779,1.42873229,111390.0,111380.0,0.001]
[1756960855900,1.44693645,111390.0,111380.0,0.001]
[1756960856685,1.42873229,111390.0,111380.0,0.001]
[1756960858964,1.27913229,111390.0,111380.0,0.001]
[1756960859193,1.42873229,111390.0,111380.0,0.001]
[1756960859552,1.70783814,111390.0,111380.0,0.001]
[1756960860155,1.55823814,111390.0,111380.0,0.001]
[1756960860351,1.70783814,111390.0,111380.0,0.001]
[1756960862962,2.21833802,111390.0,111380.0,0.001]
[1756960863503,2.12642203,111390.0,111380.0,0.001]
[1756960863710,1.70783814,111390.0,111380.0,0.001]
[1756960864580,1.55823814,111390.0,111380.0,0.001]
[1756960864782,1.70783814,111390.0,111380.0,0.001]
[1756960865026,1.55823814,111390.0,111380.0,0.001]
[1756960865195,1.70783814,111390.0,111380.0,0.001]
[1756960865850,1.55553814,111390.0,111380.0,0.001]
[1756960865994,1.70513814,111390.0,111380.0,0.001]
[1756960867254,1.55553814,111390.0,111380.0,0.001]
[1756960867465,0.62645437,111390.0,111380.0,0.001]
[1756960867672,1.41367315,111390.0,111380.0,0.00608]
[1756960869556,1.56327315,111390.0,111380.0,0.00608]
[1756960869969,1.65518914,111390.0,111380.0,0.00608]
[1756960870592,1.56327315,111390.0,111380.0,0.00608]
[1756960872843,1.41367315,111390.0,111380.0,0.00608]
[1756960878645,1.56327315,111390.0,111380.0,0.001]
[1756960880386,1.59341215,111390.0,111380.0,0.001]
[1756960881221,1.59071215,111390.0,111380.0,0.001]
[1756960884443,0.75354437,111390.0,111380.0,0.001]
[1756960884681,1.59071215,111390.0,111380.0,0.001]
[1756960889314,1.41367315,111390.0,111380.0,0.00596]
[1756960889748,1.56327315,111390.0,111380.0,0.00596]
[1756960895002,1.56327315,111390.0,111380.0,0.001]
[1756960908364,0.57650537,111390.0,111380.0,0.00304]
[1756960908575,0.36711066,111390.0,111380.0,0.18583545]
[1756960908780,0.02711066,111390.0,111380.0,0.34792381]
[1756960909000,0.02711066,111390.0,111380.0,0.41696381]
[1756960909201,0.00012662,111390.0,111380.0,0.41696381]
[1756960909406,0.41871051,111390.0,111380.0,0.50331144]
[1756960909616,0.34012662,111390.0,111380.0,0.50331144]
[1756960909822,0.75871051,111390.0,111380.0,0.50331144]
[1756960910256,0.34012662,111390.0,111380.0,0.50331144]
[1756960910652,0.75871051,111390.0,111380.0,0.50331144]
[1756960911033,0.78508784,111390.0,111380.0,0.50331144]
[1756960913617,1.38322106,111390.0,111380.0,0.25487545]
[1756960913836,1.38322106,111390.0,111380.0,0.2288]
[1756960913837,1.38520106,111390.0,111380.0,0.2288]
[1756960914040,1.38520106,111390.0,111380.0,0.15976]
[1756960914256,1.38520106,111390.0,111380.0,0.15984]
[1756960915487,1.38520106,111390.0,111380.0,0.15988]
[1756960916124,0.54803328,111390.0,111380.0,0.15988]
[1756960916540,1.38520106,111390.0,111380.0,0.15988]
[1756960919281,1.41219059,111390.0,111380.0,0.15988]
[1756960920328,0.57502281,111390.0,111380.0,0.15988]
[1756960920534,1.41219059,111390.0,111380.0,0.001]
[1756960920691,1.41219059,111390.0,111380.0,0.15984]
[1756960921674,1.13310096,111390.0,111380.0,0.15984]
[1756960921900,0.57502281,111390.0,111380.0,0.15984]
[1756960922122,1.13310096,111390.0,111380.0,0.15984]
[1756960923631,1.13310096,111390.0,111380.0,0.1598]
[1756960924205,1.13310096,111390.0,111380.0,0.15976]
[1756960924709,1.29178096,111390.0,111380.0,0.001]
[1756960925100,1.31710096,111390.0,111380.0,0.001]
[1756960925542,1.31706096,111390.0,111380.0,0.001]
[1756960925744,1.15842096,111390.0,111380.0,0.001]
[1756960926034,1.31714096,111390.0,111380.0,0.001]
[1756960926467,1.31814096,111390.0,111380.0,0.001]
[1756960927062,0.17956545,111380.0,111370.0,0.16187]
[1756960927267,0.76601093,111380.0,111370.0,0.00527]
[1756960927688,0.79300291,111380.0,111370.0,0.00204]
[1756960927886,0.51958157,111370.0,111360.0,0.41054638]
[1756960928103,0.5459589,111370.0,111360.0,0.41258638]
[1756960928275,1.10403705,111370.0,111360.0,0.41258638]
[1756960928487,1.13102903,111370.0,111360.0,0.41258638]
[1756960929144,1.13102903,111370.0,111360.0,0.4125877]
[1756960930309,1.13102903,111370.0,111360.0,0.23299]
[1756960930529,1.13102903,111370.0,111360.0,0.23399]
[1756960930894,1.13102903,111370.0,111360.0,0.23599]